Cogmind - Beta 12 @@@ ROGUE MODE // 2023.04.25 @ 18:34:16 Player: Mr Goldstein Result: Destroyed by B-75 Beast with Heavy Plasma Cannon Performance ------------- Evolutions (3) 1500 Regions Visited (7) 1400 Robots Destroyed (16) 80 Value Destroyed (490) 490 Prototype IDs (4) 80 Alien Tech Used (0) 0 Bonus (874) 874 TOTAL SCORE: 4424 Bonus ------- Pacifist 834 High Alert Combat Kills 40 Cogmind --------- Core Integrity 0/700 Matter 164/300 Energy 100/100 System Corruption 20% Temperature Cool (12) Movement Core (50) Location -7/Lower Caves Parts ------- > --- POWER (1) -------- (None) > --- PROPULSION (6) --- (None) > --- UTILITY (4) ------ Authchip [Propulsion] > --- WEAPON (2) ------- (None) > --- INVENTORY (5) ---- Antimatter Reactor Flight Unit Experimental Cesium-ion Thruster Shock Maul Peak State ------------ > --- POWER ------------ Enhanced Nuclear Core > --- PROPULSION ------- Heavy Treads Heavy Treads Heavy Treads > --- UTILITY ---------- Authchip [Propulsion] Authchip [Device] > --- WEAPON ----------- (None) > --- INVENTORY -------- Antimatter Reactor Flight Unit Experimental Cesium-ion Thruster Advanced EMP Blaster Shock Maul [Rating: 51] Favorites ----------- Power Antimatter Reactor Power Core Enhanced Nuclear Core Reactor Antimatter Reactor Propulsion Heavy Treads Treads Heavy Treads Hover Unit Gravmag System Flight Unit Experimental Cesium-ion Thruster Utility Authchip [Propulsion] Hackware Authchip [Propulsion] Weapon Advanced EMP Blaster Launcher Advanced EMP Blaster Impact Weapon Shock Maul Build | -11 -10 -9 -8 -7 -7 -7 -7 ------- Run | Jun Mat Mat Mat Fac Was Fac Low Slots Evolved 6 | . . 2 2 2 . . . Power . | . . . . . . . . Propulsion 4 | . . 2 1 1 . . . Utility 2 | . . . 1 1 . . . Weapon . | . . . . . . . . Parts Attached 22 | . . . . 2 7 7 6 Power 4 | . . . . . . 2 2 Engine . | . . . . . . . . Core 1 | . . . . . . 1 . Reactor 3 | . . . . . . 1 2 Propulsion 6 | . . . . 1 4 . 1 Treads 3 | . . . . . 3 . . Leg . | . . . . . . . . Wheel . | . . . . . . . . Hover 1 | . . . . 1 . . . Flight 2 | . . . . . 1 . 1 Utility 2 | . . . . . 2 . . Device . | . . . . . . . . Storage . | . . . . . . . . Processor . | . . . . . . . . Hackware 2 | . . . . . 2 . . Protection . | . . . . . . . . Artifact . | . . . . . . . . Weapon 10 | . . . . 1 1 5 3 Energy Gun . | . . . . . . . . Energy Cannon . | . . . . . . . . Ballistic Gun . | . . . . . . . . Ballistic Cannon . | . . . . . . . . Launcher 7 | . . . . 1 . 3 3 Special Weapon . | . . . . . . . . Impact Weapon 3 | . . . . . 1 2 . Slashing Weapon . | . . . . . . . . Piercing Weapon . | . . . . . . . . Special Melee Weapon . | . . . . . . . . Unidentified Prototypes 4 | . . . . 1 2 1 . Corrupted Parts 3 | . . . . . 2 . 1 System Corruption 20 | . . . . . 10 . 10 Parts Lost 7 | . . . . 1 . 1 5 Power . | . . . . . . . . Propulsion 5 | . . . . 1 . 1 3 Utility 1 | . . . . . . . 1 Weapon 1 | . . . . . . . 1 Highest Loss Streak 3 | . . . . 1 . 1 3 To Critical Strikes 1 | . . . . . . . 1 Average Slot Usage (%) 19 | . . . . 2 23 35 18 Treads 8 | . . . . . 6 19 1 Hackware 8 | . . . . . 12 15 12 Naked Turns 310 | . 62 70 61 110 7 . . Heaviest Build 22 | . . . . . . 22 . Greatest Support 70 | 3 3 3 3 3 70 70 4 Greatest Overweight (x) 7 | . . . . . . 7 . Average Overweight (x) . | . . . . . . . . Largest Inventory Capacity 5 | 5 5 5 5 5 5 5 5 Average Capacity 5 | 5 5 5 5 5 5 5 5 Most Carried 5 | . . 1 4 5 5 5 5 Average Carried 3 | . . . 2 4 4 4 4 Final Capacity 5 | 5 5 5 5 5 5 5 5 Final Carried 5 | . . 1 4 5 5 5 4 Class Distribution -------------------- 95% | Mutant 4% | Sprinter Dominant Class ---------------- Mutant | -10/Materials Mutant | -9/Materials Mutant | -8/Materials Mutant | -7/Factory Sprinter | -7/Waste Mutant | -7/Factory Mutant | -7/Lower Caves Resources | -11 -10 -9 -8 -7 -7 -7 -7 ----------- Run | Jun Mat Mat Mat Fac Was Fac Low Matter Collected 324 | 80 . . . . 177 25 42 Remotely . | . . . . . . . . Salvage Created 551 | . . . . . . 416 135 Parts 34 | . . . . . . 23 11 Haulers Intercepted . | . . . . . . . . Recyclers Shooed . | . . . . . . . . Parts Field Recycled . | . . . . . . . . Retrieved Matter . | . . . . . . . . Parts Self-Destructed 2 | . . . . . . . 2 Prevented 3 | . . . . . . . 3 Kills | -11 -10 -9 -8 -7 -7 -7 -7 ------- Run | Jun Mat Mat Mat Fac Was Fac Low Combat Hostiles Destroyed 14 | . . . . . . 9 5 AOE 13 | . . . . . . 8 5 Classes Destroyed 3 | . . . . . . 3 . Worker 2 | . . . . . . 2 . Swarmer 11 | . . . . . . 6 5 Grunt 3 | . . . . . . 3 . Best Kill Streak 11 | . . . . . . 11 3 Combat Bots Only 9 | . . . . . . 9 3 Max Kills in Single Turn 2 | . . . . . . 2 2 Gunslinging . | . . . . . . . . Exploded 2 | . . . . . . 2 2 Melee . | . . . . . . . . Uniques/NPCs Destroyed . | . . . . . . . . Combat | -11 -10 -9 -8 -7 -7 -7 -7 -------- Run | Jun Mat Mat Mat Fac Was Fac Low Damage Taken 2122 | . 3 269 139 258 . 699 754 Core 1140 | . 3 269 139 213 . 33 483 Absorbed by Shields . | . . . . . . . . Core Remaining (%) 76 | 100 98 32 74 . . . . Volleys Fired 13 | . . . . . . 8 5 Largest 1 | . . . . . . 1 1 Hottest 36 | . . . . . . 36 36 Shots Fired 13 | . . . . . . 8 5 Gun . | . . . . . . . . Cannon . | . . . . . . . . Launcher 13 | . . . . . . 8 5 Special . | . . . . . . . . Kinetic . | . . . . . . . . Thermal . | . . . . . . . . Explosive . | . . . . . . . . Electromagnetic 13 | . . . . . . 8 5 Robot Hit Streak 2 | . . . . . . 1 2 Robot Miss Streak 2 | . . . . . . 1 2 Penetration Max . | . . . . . . . . Secondary Targets . | . . . . . . . . Shots Hit Robots 3 | . . . . . . 1 2 Core Hits 22 | . . . . . . 12 10 Critical Kills . | . . . . . . . . Critical Parts Destroyed . | . . . . . . . . Critical Strikes . | . . . . . . . . Melee Attacks 4 | . . . . . . 4 . Impact 4 | . . . . . . 4 . Slashing . | . . . . . . . . Piercing . | . . . . . . . . Sneak Attacks . | . . . . . . . . Combat Hostiles . | . . . . . . . . Follow-up Attacks . | . . . . . . . . Damage Inflicted 996 | . 6 14 24 13 . 635 304 Guns . | . . . . . . . . Cannons . | . . . . . . . . Explosions 939 | . . . . . . 635 304 Melee . | . . . . . . . . Ramming 57 | . 6 14 24 13 . . . Kinetic . | . . . . . . . . Thermal 206 | . . . . . . 97 109 Explosive . | . . . . . . . . Electromagnetic 733 | . . . . . . 538 195 Impact . | . . . . . . . . Slashing . | . . . . . . . . Piercing . | . . . . . . . . Highest Corruption 20 | . . . . . 10 10 20 Average Corruption 10 | . . . . . 8 10 15 Corruption Purged . | . . . . . . . . Corruption Blocked . | . . . . . . . . Effects 21 | . . . . . 4 11 6 Message Errors 8 | . . . . . 1 2 5 Matter Fused 6 | . . . . . 1 5 . Heat Flow Errors 1 | . . . . . . 1 . Energy Discharges 2 | . . . . . 2 . . Data Loss (minor) 2 | . . . . . . 2 . Data Loss (major) 1 | . . . . . . 1 . Misdirections 1 | . . . . . . . 1 Overload Shots . | . . . . . . . . Overflow Damage 27 | . . . . . . 27 . Projectiles . | . . . . . . . . Explosions 27 | . . . . . . 27 . Melee . | . . . . . . . . Knockbacks . | . . . . . . . . Impact . | . . . . . . . . Kinetic . | . . . . . . . . Secondary . | . . . . . . . . Self-Inflicted Damage 56 | . 3 6 11 6 . . 30 Shots 2 | . . . . . . . 2 Rammed 12 | . 2 5 4 1 . . . Targets Rammed 12 | . 2 5 4 1 . . . Kicked . | . . . . . . . . Crushed . | . . . . . . . . Highest Temperature 159 | . . . . . . 159 . Average Temperature 76 | . . . . . . 76 . Received Heat Transfer 282 | . . 30 45 99 . 84 24 Siege Activations . | . . . . . . . . Robots Corrupted 1 | . . . . . . 1 . Combat Hostiles 1 | . . . . . . 1 . Parts Fried 2 | . . . . . . 2 . Impact Corruptions . | . . . . . . . . Robots Melted . | . . . . . . . . Combat Hostiles . | . . . . . . . . Parts Melted . | . . . . . . . . Heat Transferred 250 | . . . . . . 150 100 Parts Sabotaged . | . . . . . . . . Parts Stolen . | . . . . . . . . Parts Stripped . | . . . . . . . . Power Chain Reactions 4 | . . . . . . 2 2 Missiles Intercepted . | . . . . . . . . Alert | -11 -10 -9 -8 -7 -7 -7 -7 ------- Run | Jun Mat Mat Mat Fac Was Fac Low Peak Influence 644 | . 30 117 94 442 154 644 . Initial 154 | . . 12 49 42 154 107 . Average 217 | . 7 49 59 196 154 345 . Maximum Alert Level 2 | . . . . 2 . 2 . Low Security (%) 66 | 100 100 100 100 49 100 47 . Level 1 11 | . . . . 39 . 8 . Level 2 21 | . . . . 11 . 44 . Level 3 . | . . . . . . . . Level 4 . | . . . . . . . . Level 5 . | . . . . . . . . High Security . | . . . . . . . . Max Security . | . . . . . . . . Squads Dispatched 5 | . 1 1 . 1 . 2 . Investigation 3 | . . 1 . 1 . 1 . Extermination . | . . . . . . . . Reinforcement 2 | . 1 . . . . 1 . Assault . | . . . . . . . . Garrison . | . . . . . . . . Intercept . | . . . . . . . . Searches Triggered . | . . . . . . . . Construction Impeded . | . . . . . . . . Haulers Reinforced . | . . . . . . . . Active Scanning Responses . | . . . . . . . . Cargo Convoy Interrupts . | . . . . . . . . Stealth | -11 -10 -9 -8 -7 -7 -7 -7 --------- Run | Jun Mat Mat Mat Fac Was Fac Low Distress Signals 2 | . . . 1 1 . . . Communications Jammed . | . . . . . . . . Distress Signals . | . . . . . . . . Times Spotted 76 | . 3 19 8 11 . 22 13 Peak Tracking Total 19 | . 3 19 9 7 . 10 4 Tactical Retreats 12 | . . 2 1 3 . 4 2 Traps | -11 -10 -9 -8 -7 -7 -7 -7 ------- Run | Jun Mat Mat Mat Fac Was Fac Low Traps Triggered 4 | . . 1 . 1 . 2 . Indirectly 1 | . . . . . . 1 . Trap Hack Attempts . | . . . . . . . . Triggered . | . . . . . . . . Disarmed . | . . . . . . . . Reprogrammed . | . . . . . . . . Reused . | . . . . . . . . Traps Extracted . | . . . . . . . . Installed . | . . . . . . . . Triggered . | . . . . . . . . Machines | -11 -10 -9 -8 -7 -7 -7 -7 ---------- Run | Jun Mat Mat Mat Fac Was Fac Low Machines Disabled 5 | . . . . . . 5 . Max in Single Turn 2 | . . . . . . 2 . Garrison Access 1 | . . . . 1 . . . Machines Repaired . | . . . . . . . . Machines Sabotaged . | . . . . . . . . Overloaded Fab Kills . | . . . . . . . . Hacking | -11 -10 -9 -8 -7 -7 -7 -7 --------- Run | Jun Mat Mat Mat Fac Was Fac Low Machines Accessed 7 | . . . . 2 . 5 . Terminals 3 | . . . . 1 . 2 . Fabricators 2 | . . . . . . 2 . Repair Stations 1 | . . . . . . 1 . Recycling Units . | . . . . . . . . Scanalyzers . | . . . . . . . . Garrison Access 1 | . . . . 1 . . . Total Hacks 13 | . . . . 4 . 9 . Successful 3 | . . . . 1 . 2 . Failed 10 | . . . . 3 . 7 . Catastrophic 4 | . . . . 2 . 2 . Database Lockouts . | . . . . . . . . Manual 8 | . . . . 4 . 4 . Terminals 3 | . . . . 1 . 2 . Fabricators 4 | . . . . . . 4 . Repair Stations 3 | . . . . . . 3 . Recycling Units . | . . . . . . . . Scanalyzers . | . . . . . . . . Garrison Access 3 | . . . . 3 . . . Terminal Hacks 1 | . . . . . . 1 . Level Access Points 1 | . . . . . . 1 . Fabricator Hacks . | . . . . . . . . Repair Station Hacks 1 | . . . . . . 1 . Scan Component 1 | . . . . . . 1 . Recycling Unit Hacks . | . . . . . . . . Scanalyzer . | . . . . . . . . Garrison Access Hacks . | . . . . . . . . Unauthorized Hacks 1 | . . . . 1 . . . Terminals . | . . . . . . . . Fabricators . | . . . . . . . . Repair Stations . | . . . . . . . . Recycling Units . | . . . . . . . . Scanalyzers . | . . . . . . . . Garrison Access 1 | . . . . 1 . . . Jam 1 | . . . . 1 . . . Data Cores Recovered . | . . . . . . . . Used . | . . . . . . . . Hacking Detections 7 | . . . . 2 . 5 . Full Trace Events 1 | . . . . . . 1 . Feedback Events . | . . . . . . . . Feedback Blocked . | . . . . . . . . Robot Schematics Acquired . | . . . . . . . . Robots Built . | . . . . . . . . Authchips . | . . . . . . . . Time . | . . . . . . . . Total Robot Build Rating . | . . . . . . . . Part Schematics Acquired . | . . . . . . . . Parts Built . | . . . . . . . . Authchips . | . . . . . . . . Time . | . . . . . . . . Total Part Build Rating . | . . . . . . . . Parts Repaired . | . . . . . . . . Time . | . . . . . . . . Parts Recycled . | . . . . . . . . Recycled Matter . | . . . . . . . . Retrieved Matter . | . . . . . . . . Retrieved Components . | . . . . . . . . Parts Scanalyzed . | . . . . . . . . Part Schematics Acquired . | . . . . . . . . Parts Damaged . | . . . . . . . . Bothacking | -11 -10 -9 -8 -7 -7 -7 -7 ------------ Run | Jun Mat Mat Mat Fac Was Fac Low Used RIF Installer . | . . . . . . . . Robots Hacked . | . . . . . . . . Non-combat . | . . . . . . . . Combat . | . . . . . . . . Robot Hacks Applied . | . . . . . . . . Relay Couplers Released . | . . . . . . . . Fabnet Peak Effective % . | . . . . . . . . Robots Rewired . | . . . . . . . . Allies Hacked . | . . . . . . . . Hacks Repelled . | . . . . . . . . Allies | -11 -10 -9 -8 -7 -7 -7 -7 -------- Run | Jun Mat Mat Mat Fac Was Fac Low Total Allies . | . . . . . . . . Largest Group . | . . . . . . . . Highest-Rated Group . | . . . . . . . . Highest-Rated Ally . | . . . . . . . . Total Orders . | . . . . . . . . Ally Attacks . | . . . . . . . . Total Damage . | . . . . . . . . Kills . | . . . . . . . . Allies Corrupted . | . . . . . . . . Allies Melted . | . . . . . . . . Intel | -11 -10 -9 -8 -7 -7 -7 -7 ------- Run | Jun Mat Mat Mat Fac Was Fac Low Robot Analysis Total . | . . . . . . . . Derelict Logs Recovered . | . . . . . . . . Drone Launches . | . . . . . . . . Drone Recoveries . | . . . . . . . . Exploration | -11 -10 -9 -8 -7 -7 -7 -7 ------------- Run | Jun Mat Mat Mat Fac Was Fac Low Turns Passed 970 | 10 62 70 61 181 106 369 111 Spaces Moved 1808 | 19 119 128 108 350 250 636 198 Core 1579 | 19 119 128 108 350 103 635 117 Treads 4 | . . . . . 3 1 . Legs . | . . . . . . . . Wheels . | . . . . . . . . Hover . | . . . . . . . . Flight 225 | . . . . . 144 . 81 Fastest Speed 25 | 50 50 50 50 50 25 50 35 Average Speed 47 | 50 50 50 50 50 36 50 43 Slowest Speed 400 | 50 50 50 50 50 160 400 50 Overloaded Moves . | . . . . . . . . Propulsion Burnouts . | . . . . . . . . Robots Hopped 4 | . . . . . 2 . 2 Cave-ins Triggered . | . . . . . . . . Exploration Rate (%) 30 | 3 33 21 19 16 86 23 39 Regions Visited 7 Branch Regions 1 Pre-discovered Areas . | . . . . . . . . Known Exits Taken . | . . . . . . . . Unknown Exits Taken 5 | 1 1 1 1 . . 1 . Scrap Searched 1 | . . . . . . . 1 Spaces Dug 4 | . . . . . . 4 . Terrain Destroyed 35 | . . . . . . 29 6 Melee 4 | . . . . . . 4 . Projectile . | . . . . . . . . AOE 31 | . . . . . . 25 6 Terrain Rammed . | . . . . . . . . Walls Destroyed . | . . . . . . . . Machines Disabled . | . . . . . . . . Actions | -11 -10 -9 -8 -7 -7 -7 -7 --------- Run | Jun Mat Mat Mat Fac Was Fac Low Total 1886 | 18 120 133 114 356 261 668 216 Wait 12 | . . . . . . 7 5 Move 1796 | 18 118 127 107 350 246 635 195 Hop 2 | . . . . . 1 . 1 Pick Up 6 | . . 1 3 1 1 . . Fast Attach 11 | . . . . 2 7 1 1 Attach 11 | . . . . . . 6 5 Detach 13 | . . . . 1 2 6 4 Swap . | . . . . . . . . Drop 5 | . . . . 1 3 1 . Fire 13 | . . . . . . 8 5 Melee 4 | . . . . . . 4 . Ram 12 | . 2 5 4 1 . . . Kick . | . . . . . . . . Crush . | . . . . . . . . Escape Stasis . | . . . . . . . . Rewire 1 | . . . . . 1 . . Trap . | . . . . . . . . Miscellaneous . | . . . . . . . . Route ------- -11/Junkyard -10/Materials -9/Materials -8/Materials -7/Factory -7/Waste -7/Factory (discovered 5 exits: *Fac x4 / [*Low]) -7/Lower Caves History --------- Turn | Location | Event 5 | -11/Junkyard | Discovered new exit (range 12) 11 | -11/Junkyard | Entered Materials 64 | -10/Materials | Discovered new exit (range 14) 73 | -10/Materials | Entered another Materials area 73 | -9/Materials | Evolved 2 slots: Propulsion x2 126 | -9/Materials | Core integrity fell below 50% 138 | -9/Materials | Discovered new exit (range 11) 143 | -9/Materials | Entered another Materials area 143 | -8/Materials | Evolved 2 slots: Propulsion x1, Utility x1 191 | -8/Materials | Discovered new exit (range 15) 204 | -8/Materials | Entered Factory 204 | -7/Factory | Evolved 2 slots: Propulsion x1, Utility x1 308 | -7/Factory | Build established: Mutant 385 | -7/Factory | Sucked down chute 385 | -7/Factory | Entered Waste 385 | -7/Waste | The area was eerily silent 414 | -7/Waste | System corruption reached 10% 427 | -7/Waste | Discovered new exit (range 12) 491 | -7/Waste | Entered Factory 631 | -7/Factory | Identified exit to Factory 739 | -7/Factory | Destroyed 9 combat bots 852 | -7/Factory | Discovered new exit (range 15) 860 | -7/Factory | Entered Lower Caves 933 | -7/Lower Caves | Core integrity fell below 50% 952 | -7/Lower Caves | Core integrity fell below 20% 962 | -7/Lower Caves | Spotted B-75 Beast 971 | -7/Lower Caves | Lost 3 parts (1n1u1w) 971 | -7/Lower Caves | Destroyed by B-75 Beast with Heavy Plasma Cannon Last Messages --------------- 00895_ Chain reaction triggered in Lgt. Nuclear Core. 00896_ Corrupted VTOL Module self-destruct mechanism malfunctions. 00897_ S-27 Virus destroyed. 00901_ Acquired 30 matter. 00901_ Acquired 12 matter. 00902_ Corrupted Autogun fries itself beyond repair. 00906_ AC JN=DIVZ3P% P/,ASRQL